[Event "*** Titled Tuesday Blitz"]
[Site "Chess.com"]
[Date "2019.06.04"]
[Round "2"]
[White "chessmattersX"]
[Black "champ2005"]
[Result "1/2-1/2"]
[WhiteElo "2464"]
[BlackElo "2824"]
[TimeControl "180+2"]
[EndTime "13:24:25 PDT"]
[Termination "Game drawn by repetition"]

1. d4 {[%clk 0:03:01.9]} 1... Nf6 {[%clk 0:03:00]} 2. c4 {[%clk 0:03:02.4]} 2...
g6 {[%clk 0:03:01.5]} 3. g3 {[%clk 0:03:02.3]} 3... Bg7 {[%clk 0:03:01.7]} 4.
Bg2 {[%clk 0:03:03.5]} 4... O-O {[%clk 0:03:02.3]} 5. Nc3 {[%clk 0:03:01.5]}
5... c5 {[%clk 0:03:02.4]} 6. d5 {[%clk 0:03:02.1]} 6... d6 {[%clk 0:03:01.4]}
7. Nf3 {[%clk 0:03:02.7]} 7... e6 {[%clk 0:03:02.7]} 8. O-O {[%clk 0:02:59.3]}
8... exd5 {[%clk 0:03:03.6]} 9. cxd5 {[%clk 0:03:00.2]} 9... Re8 {[%clk
0:03:04.9]} 10. Nd2 {[%clk 0:02:55.4]} 10... b6 {[%clk 0:03:05.6]} 11. a4 {[%clk
0:02:52.3]} 11... Na6 {[%clk 0:03:05.6]} 12. Nc4 {[%clk 0:02:48.5]} 12... Nh5
{[%clk 0:02:50.8]} 13. e4 {[%clk 0:02:29.3]} 13... Nb4 {[%clk 0:02:48.7]} 14.
Nb5 {[%clk 0:02:11.3]} 14... Bf8 {[%clk 0:02:49]} 15. Bd2 {[%clk 0:02:09.3]}
15... a6 {[%clk 0:02:45.3]} 16. Nba3 {[%clk 0:01:58.4]} 16... Bg7 {[%clk
0:02:37.4]} 17. Bc3 {[%clk 0:01:56.3]} 17... Nf6 {[%clk 0:02:36.9]} 18. Re1
{[%clk 0:01:47.9]} 18... Bd7 {[%clk 0:02:37.9]} 19. Nxd6 {[%clk 0:01:43.3]}
19... Rf8 {[%clk 0:02:38.9]} 20. Ndc4 {[%clk 0:01:42.3]} 20... b5 {[%clk
0:02:38.2]} 21. e5 {[%clk 0:01:27.6]} 21... bxc4 {[%clk 0:02:36.3]} 22. exf6
{[%clk 0:01:28.2]} 22... Bxf6 {[%clk 0:02:37.6]} 23. Nxc4 {[%clk 0:01:28.5]}
23... Bf5 {[%clk 0:02:38.5]} 24. Bxb4 {[%clk 0:01:14.2]} 24... cxb4 {[%clk
0:02:40.4]} 25. Rc1 {[%clk 0:01:13]} 25... Rc8 {[%clk 0:02:36.5]} 26. a5 {[%clk
0:01:08.9]} 26... Bg5 {[%clk 0:02:24.8]} 27. f4 {[%clk 0:01:06.6]} 27... Bf6
{[%clk 0:02:25.1]} 28. b3 {[%clk 0:00:54.8]} 28... Bc3 {[%clk 0:02:22.8]} 29.
Rf1 {[%clk 0:00:48.9]} 29... h5 {[%clk 0:02:19.2]} 30. Nb6 {[%clk 0:00:43.1]}
30... Rc5 {[%clk 0:02:17.7]} 31. Nc4 {[%clk 0:00:40.7]} 31... Bd7 {[%clk
0:02:10.8]} 32. Be4 {[%clk 0:00:38.1]} 32... Bb5 {[%clk 0:02:09.1]} 33. Qd3
{[%clk 0:00:39.2]} 33... Qf6 {[%clk 0:01:59.1]} 34. d6 {[%clk 0:00:36]} 34...
Bxc4 {[%clk 0:01:29.1]} 35. bxc4 {[%clk 0:00:37.4]} 35... Qd4+ {[%clk
0:01:27.2]} 36. Qxd4 {[%clk 0:00:33.2]} 36... Bxd4+ {[%clk 0:01:29.1]} 37. Kg2
{[%clk 0:00:34.8]} 37... Rd8 {[%clk 0:01:29.6]} 38. Rfd1 {[%clk 0:00:33.7]}
38... Rxd6 {[%clk 0:01:26.1]} 39. Bd5 {[%clk 0:00:34.3]} 39... Be3 {[%clk
0:01:16]} 40. Rb1 {[%clk 0:00:31.4]} 40... Rxa5 {[%clk 0:00:54.9]} 41. Bxf7+
{[%clk 0:00:28.6]} 41... Kxf7 {[%clk 0:00:55.7]} 42. Rxd6 {[%clk 0:00:30]} 42...
Bc5 {[%clk 0:00:51.9]} 43. Rd5 {[%clk 0:00:31]} 43... Ra2+ {[%clk 0:00:50.2]}
44. Kh3 {[%clk 0:00:28.2]} 44... Be7 {[%clk 0:00:48.4]} 45. c5 {[%clk
0:00:29.1]} 45... a5 {[%clk 0:00:48.4]} 46. c6 {[%clk 0:00:30.2]} 46... Rc2
{[%clk 0:00:49.5]} 47. Rxa5 {[%clk 0:00:29.1]} 47... Rxc6 {[%clk 0:00:50.5]} 48.
Ra7 {[%clk 0:00:30.6]} 48... Kf6 {[%clk 0:00:51]} 49. Rxe7 {[%clk 0:00:27.8]}
49... Kxe7 {[%clk 0:00:51.5]} 50. Rxb4 {[%clk 0:00:29.4]} 50... Kf6 {[%clk
0:00:52.4]} 51. Rb5 {[%clk 0:00:30.7]} 51... Ra6 {[%clk 0:00:51.6]} 52. Kh4
{[%clk 0:00:31.8]} 52... Rc6 {[%clk 0:00:52]} 53. h3 {[%clk 0:00:33.1]} 53...
Ra6 {[%clk 0:00:52.6]} 54. g4 {[%clk 0:00:32.5]} 54... hxg4 {[%clk 0:00:53.7]}
55. hxg4 {[%clk 0:00:34.4]} 55... Rc6 {[%clk 0:00:54.6]} 56. g5+ {[%clk
0:00:34.6]} 56... Kg7 {[%clk 0:00:55.8]} 57. Rb7+ {[%clk 0:00:34.8]} 57... Kf8
{[%clk 0:00:55.6]} 58. Kg4 {[%clk 0:00:36.3]} 58... Rc3 {[%clk 0:00:54.5]} 59.
Rb6 {[%clk 0:00:34.6]} 59... Kg7 {[%clk 0:00:54.5]} 60. Rb7+ {[%clk 0:00:35.8]}
60... Kf8 {[%clk 0:00:55.5]} 61. Rb8+ {[%clk 0:00:36.7]} 61... Kg7 {[%clk
0:00:56.3]} 62. Rb7+ {[%clk 0:00:38.2]} 62... Kf8 {[%clk 0:00:57.3]} 1/2-1/2

[Event "*** Titled Tuesday Blitz"]
[Site "Chess.com"]
[Date "2019.06.04"]
[Round "2"]
[White "marianokar"]
[Black "Vamostodorecto"]
[Result "1-0"]
[WhiteElo "2438"]
[BlackElo "2430"]
[TimeControl "180+2"]
[EndTime "13:24:27 PDT"]
[Termination "marianokar won by resignation"]

1. d4 {[%clk 0:03:01.9]} 1... Nf6 {[%clk 0:02:58.7]} 2. Nf3 {[%clk 0:03:01.9]}
2... g6 {[%clk 0:02:59.7]} 3. c4 {[%clk 0:03:01.2]} 3... Bg7 {[%clk 0:02:59.3]}
4. g3 {[%clk 0:03:02.3]} 4... d5 {[%clk 0:03:00.6]} 5. cxd5 {[%clk 0:03:02]}
5... Nxd5 {[%clk 0:03:02.5]} 6. Bg2 {[%clk 0:03:03.3]} 6... O-O {[%clk
0:03:03.2]} 7. O-O {[%clk 0:03:04.3]} 7... Nb6 {[%clk 0:03:03.3]} 8. Nc3 {[%clk
0:03:03]} 8... Nc6 {[%clk 0:03:03.5]} 9. e3 {[%clk 0:03:04.1]} 9... a5 {[%clk
0:02:59.7]} 10. Qe2 {[%clk 0:03:00.8]} 10... Bg4 {[%clk 0:02:57.7]} 11. h3
{[%clk 0:02:56.6]} 11... Be6 {[%clk 0:02:58.5]} 12. Rd1 {[%clk 0:02:57.5]} 12...
Qc8 {[%clk 0:02:58.1]} 13. Kh2 {[%clk 0:02:55]} 13... Rd8 {[%clk 0:02:59.3]} 14.
Nd2 {[%clk 0:02:18.9]} 14... Nb4 {[%clk 0:02:50.1]} 15. Nde4 {[%clk 0:02:06.8]}
15... Bc4 {[%clk 0:02:48.6]} 16. Qf3 {[%clk 0:01:57.9]} 16... e5 {[%clk
0:02:40]} 17. Nf6+ {[%clk 0:01:54]} 17... Kh8 {[%clk 0:02:31.1]} 18. dxe5 {[%clk
0:01:51.3]} 18... Rxd1 {[%clk 0:02:28.8]} 19. Nxd1 {[%clk 0:01:34.5]} 19... c6
{[%clk 0:02:24.4]} 20. b3 {[%clk 0:01:35.2]} 20... Be6 {[%clk 0:02:11.6]} 21.
Bb2 {[%clk 0:01:35.1]} 21... a4 {[%clk 0:02:13.2]} 22. bxa4 {[%clk 0:01:23.2]}
22... Nxa4 {[%clk 0:02:15.1]} 23. Bd4 {[%clk 0:00:41]} 23... Rb8 {[%clk
0:01:14]} 24. Nc3 {[%clk 0:00:33]} 24... Nxc3 {[%clk 0:01:07.8]} 25. Bxc3 {[%clk
0:00:34.1]} 25... Nxa2 {[%clk 0:01:08.7]} 26. Bd4 {[%clk 0:00:22.5]} 26... c5
{[%clk 0:01:06.3]} 27. Bb2 {[%clk 0:00:18.9]} 27... Nb4 {[%clk 0:00:59.2]} 28.
Ne4 {[%clk 0:00:16.9]} 28... Nd3 {[%clk 0:00:57.8]} 29. Bc3 {[%clk 0:00:16]}
29... Nxe5 {[%clk 0:00:55.4]} 30. Qf4 {[%clk 0:00:16.6]} 30... Nd7 {[%clk
0:00:47.4]} 31. Bxg7+ {[%clk 0:00:16.9]} 31... Kxg7 {[%clk 0:00:49.3]} 32. Ng5
{[%clk 0:00:15.6]} 32... Nf8 {[%clk 0:00:41.7]} 33. Rc1 {[%clk 0:00:13.7]} 33...
b6 {[%clk 0:00:38.7]} 34. Qe5+ {[%clk 0:00:13.5]} 34... f6 {[%clk 0:00:35.5]}
35. Nxe6+ {[%clk 0:00:14]} 35... Nxe6 {[%clk 0:00:37.4]} 36. Qd6 {[%clk
0:00:15.1]} 36... Ng5 {[%clk 0:00:30.3]} 37. Qe7+ {[%clk 0:00:13.9]} 37... Nf7
{[%clk 0:00:27.7]} 38. Bd5 {[%clk 0:00:14.8]} 38... Qf8 {[%clk 0:00:26.7]} 39.
Qa7 {[%clk 0:00:15.3]} 39... Rd8 {[%clk 0:00:18.3]} 40. e4 {[%clk 0:00:15.4]}
40... Rd6 {[%clk 0:00:14.3]} 41. Qc7 {[%clk 0:00:16.3]} 41... h5 {[%clk
0:00:11.9]} 42. Bxf7 {[%clk 0:00:16.6]} 42... Rd2 {[%clk 0:00:10.5]} 43. Bd5+
{[%clk 0:00:17.3]} 43... Kh6 {[%clk 0:00:10.8]} 44. Qf4+ {[%clk 0:00:16]} 44...
g5 {[%clk 0:00:11.2]} 45. Qxd2 {[%clk 0:00:17]} 1-0

[Event "*** Titled Tuesday Blitz"]
[Site "Chess.com"]
[Date "2019.06.04"]
[Round "2"]
[White "NemtsevIgor"]
[Black "matiss90"]
[Result "0-1"]
[WhiteElo "2272"]
[BlackElo "2445"]
[TimeControl "180+2"]
[EndTime "13:24:27 PDT"]
[Termination "matiss90 won by checkmate"]

1. c3 {[%clk 0:03:01.9]} 1... Nf6 {[%clk 0:02:59.2]} 2. Qa4 {[%clk 0:03:01.7]}
2... g6 {[%clk 0:02:59.4]} 3. d3 {[%clk 0:03:02.6]} 3... Bg7 {[%clk 0:03:00.4]}
4. h3 {[%clk 0:03:04]} 4... O-O {[%clk 0:03:01.3]} 5. g4 {[%clk 0:03:05.3]} 5...
d5 {[%clk 0:03:02.1]} 6. Bg2 {[%clk 0:03:04.4]} 6... c5 {[%clk 0:03:03.3]} 7.
Nd2 {[%clk 0:03:02.9]} 7... Nc6 {[%clk 0:03:04.4]} 8. Nf1 {[%clk 0:03:04.1]}
8... d4 {[%clk 0:03:00]} 9. c4 {[%clk 0:03:04.7]} 9... e5 {[%clk 0:03:00.9]} 10.
Ng3 {[%clk 0:03:05.1]} 10... Bd7 {[%clk 0:02:59]} 11. g5 {[%clk 0:03:03.3]}
11... Ne8 {[%clk 0:02:51.9]} 12. h4 {[%clk 0:03:03]} 12... Nd6 {[%clk
0:02:52.7]} 13. h5 {[%clk 0:02:58.7]} 13... Re8 {[%clk 0:02:52.5]} 14. Ne4
{[%clk 0:02:54.4]} 14... Nxe4 {[%clk 0:02:37.6]} 15. Bxe4 {[%clk 0:02:55]} 15...
Nb4 {[%clk 0:02:36.4]} 16. Qd1 {[%clk 0:02:53.6]} 16... Bc6 {[%clk 0:02:37.6]}
17. f3 {[%clk 0:02:52.9]} 17... Bxe4 {[%clk 0:02:37]} 18. fxe4 {[%clk
0:02:54.2]} 18... Na6 {[%clk 0:02:18.2]} 19. Nf3 {[%clk 0:02:39.3]} 19... Nc7
{[%clk 0:02:19]} 20. Kf2 {[%clk 0:02:38.6]} 20... Ne6 {[%clk 0:02:20]} 21. Qf1
{[%clk 0:02:31.4]} 21... Nf4 {[%clk 0:02:20.9]} 22. Bxf4 {[%clk 0:02:32]} 22...
exf4 {[%clk 0:02:22.2]} 23. Qh3 {[%clk 0:02:33.1]} 23... Kf8 {[%clk 0:02:13.6]}
24. hxg6 {[%clk 0:02:33.5]} 24... hxg6 {[%clk 0:02:14.7]} 25. Qh7 {[%clk
0:02:21.2]} 25... a6 {[%clk 0:02:13.5]} 26. Rh4 {[%clk 0:02:06.9]} 26... Qc7
{[%clk 0:02:07.7]} 27. Rg1 {[%clk 0:01:58.6]} 27... b5 {[%clk 0:02:08.2]} 28. b3
{[%clk 0:01:57.3]} 28... bxc4 {[%clk 0:02:09.4]} 29. bxc4 {[%clk 0:01:58.1]}
29... Rab8 {[%clk 0:02:10.7]} 30. Rgg4 {[%clk 0:01:58]} 30... Rb2 {[%clk
0:01:19.7]} 31. Rxf4 {[%clk 0:01:58.3]} 31... Re6 {[%clk 0:01:17.6]} 32. e5
{[%clk 0:01:37]} 32... Rxa2 {[%clk 0:00:47.8]} 33. Rf6 {[%clk 0:01:32.3]} 33...
Rxe5 {[%clk 0:00:21]} 34. Nxe5 {[%clk 0:00:56.9]} 34... Qxe5 {[%clk 0:00:21.8]}
35. Re4 {[%clk 0:00:55.1]} 35... Qxg5 {[%clk 0:00:22.6]} 36. Rc6 {[%clk
0:00:44.8]} 36... Qf5+ {[%clk 0:00:14.2]} 37. Kg2 {[%clk 0:00:41]} 37... Ra1
{[%clk 0:00:07]} 38. Re8+ {[%clk 0:00:17]} 38... Kxe8 {[%clk 0:00:07.7]} 39.
Qg8+ {[%clk 0:00:18.4]} 39... Bf8 {[%clk 0:00:08.4]} 40. Rc8+ {[%clk 0:00:16.8]}
40... Qxc8 {[%clk 0:00:08.9]} 41. Qh7 {[%clk 0:00:18]} 41... Qg4+ {[%clk
0:00:09.8]} 42. Kf2 {[%clk 0:00:18.5]} 42... Qf4+ {[%clk 0:00:10.6]} 43. Kg2
{[%clk 0:00:19.9]} 43... Qg5+ {[%clk 0:00:10.6]} 44. Kf2 {[%clk 0:00:20.9]}
44... Qe3+ {[%clk 0:00:11.6]} 45. Kg2 {[%clk 0:00:22]} 45... Rg1+ {[%clk
0:00:10.7]} 46. Kh2 {[%clk 0:00:23]} 46... Qg3# {[%clk 0:00:11.7]} 0-1

[Event "*** Titled Tuesday Blitz"]
[Site "Chess.com"]
[Date "2019.06.04"]
[Round "2"]
[White "Michael_Scofield01"]
[Black "Swarnapuri"]
[Result "1/2-1/2"]
[WhiteElo "2726"]
[BlackElo "2707"]
[TimeControl "180+2"]
[EndTime "13:24:30 PDT"]
[Termination "Game drawn by repetition"]

1. e4 {[%clk 0:03:01.9]} 1... Nc6 {[%clk 0:03:01.9]} 2. Nc3 {[%clk 0:03:01.7]}
2... e6 {[%clk 0:03:03]} 3. d4 {[%clk 0:03:01]} 3... Bb4 {[%clk 0:03:04.3]} 4.
Nf3 {[%clk 0:03:00.2]} 4... d6 {[%clk 0:03:04.4]} 5. Bd3 {[%clk 0:02:59.2]} 5...
e5 {[%clk 0:03:04]} 6. dxe5 {[%clk 0:02:54.6]} 6... dxe5 {[%clk 0:03:02.3]} 7.
O-O {[%clk 0:02:54.6]} 7... Nf6 {[%clk 0:03:00.2]} 8. h3 {[%clk 0:02:45.9]} 8...
h6 {[%clk 0:02:57.8]} 9. Be3 {[%clk 0:02:41.1]} 9... O-O {[%clk 0:02:57.1]} 10.
Nd5 {[%clk 0:02:40.5]} 10... Bd6 {[%clk 0:02:54.8]} 11. c3 {[%clk 0:02:29]}
11... Be6 {[%clk 0:02:47.8]} 12. Bc2 {[%clk 0:02:24.9]} 12... Nd7 {[%clk
0:02:40.9]} 13. a4 {[%clk 0:02:20.5]} 13... Bc5 {[%clk 0:02:37.9]} 14. Bc1
{[%clk 0:02:13.5]} 14... a5 {[%clk 0:02:37.6]} 15. Qe2 {[%clk 0:01:59.9]} 15...
Nb6 {[%clk 0:02:21.9]} 16. Rd1 {[%clk 0:01:55.7]} 16... Qc8 {[%clk 0:02:23.4]}
17. Kh2 {[%clk 0:01:35.2]} 17... Rd8 {[%clk 0:02:22.3]} 18. Bb3 {[%clk
0:01:29.6]} 18... Rd6 {[%clk 0:02:14.3]} 19. Nxe5 {[%clk 0:01:04.8]} 19... Bxd5
{[%clk 0:01:50.1]} 20. exd5 {[%clk 0:01:01.2]} 20... Nxe5 {[%clk 0:01:49.7]} 21.
Qxe5 {[%clk 0:01:01.4]} 21... Bxf2 {[%clk 0:01:50]} 22. Bf4 {[%clk 0:00:45]}
22... Bc5 {[%clk 0:01:48.5]} 23. Kh1 {[%clk 0:00:37.9]} 23... Qd7 {[%clk
0:01:46]} 24. Re1 {[%clk 0:00:35.7]} 24... Rc8 {[%clk 0:01:43.2]} 25. Rad1
{[%clk 0:00:35.7]} 25... Rf6 {[%clk 0:01:38.5]} 26. Qe4 {[%clk 0:00:34.4]} 26...
Bd6 {[%clk 0:01:32.2]} 27. Bc2 {[%clk 0:00:32.7]} 27... g6 {[%clk 0:01:25.2]}
28. Bxh6 {[%clk 0:00:32.1]} 28... Rf5 {[%clk 0:01:21.6]} 29. Be3 {[%clk
0:00:23.3]} 29... Re8 {[%clk 0:01:18.2]} 30. Qg4 {[%clk 0:00:23]} 30... Rfe5
{[%clk 0:01:16.7]} 31. Qxd7 {[%clk 0:00:23.7]} 31... Nxd7 {[%clk 0:01:18.5]} 32.
Bf2 {[%clk 0:00:24.5]} 32... Nb6 {[%clk 0:01:16.8]} 33. Rxe5 {[%clk 0:00:24.4]}
33... Rxe5 {[%clk 0:01:18.7]} 34. Re1 {[%clk 0:00:23.4]} 34... Rxe1+ {[%clk
0:01:17.9]} 35. Bxe1 {[%clk 0:00:25.3]} 35... Nxd5 {[%clk 0:01:19.7]} 36. Be4
{[%clk 0:00:26.2]} 36... c6 {[%clk 0:01:18.6]} 37. Bxd5 {[%clk 0:00:22.9]} 37...
cxd5 {[%clk 0:01:19.8]} 38. Bf2 {[%clk 0:00:24.8]} 38... Bc7 {[%clk 0:01:18.5]}
39. Kg1 {[%clk 0:00:25.4]} 39... f6 {[%clk 0:01:19.3]} 40. Kf1 {[%clk
0:00:25.3]} 40... Kf7 {[%clk 0:01:20.9]} 41. Ke2 {[%clk 0:00:26.2]} 41... Ke6
{[%clk 0:01:22.4]} 42. Kd3 {[%clk 0:00:27.5]} 42... g5 {[%clk 0:01:18.1]} 43. g4
{[%clk 0:00:27]} 43... Kd7 {[%clk 0:01:16.4]} 44. Bd4 {[%clk 0:00:26.3]} 44...
Bd8 {[%clk 0:01:14.7]} 45. b4 {[%clk 0:00:25.9]} 45... axb4 {[%clk 0:01:14.4]}
46. cxb4 {[%clk 0:00:27.8]} 46... Ke6 {[%clk 0:01:15.1]} 47. Kc3 {[%clk
0:00:25.4]} 47... Kd6 {[%clk 0:01:15.6]} 48. Kb3 {[%clk 0:00:23.8]} 48... Kc6
{[%clk 0:01:15.8]} 49. b5+ {[%clk 0:00:23.5]} 49... Kd6 {[%clk 0:01:16.7]} 50.
Kb4 {[%clk 0:00:24]} 50... b6 {[%clk 0:01:18.1]} 51. Kb3 {[%clk 0:00:22.4]}
51... Ke6 {[%clk 0:01:19.2]} 52. Bc3 {[%clk 0:00:22.1]} 52... Kd6 {[%clk
0:01:19.4]} 53. Kb4 {[%clk 0:00:18.8]} 53... Be7 {[%clk 0:01:20]} 54. Bd4 {[%clk
0:00:19]} 54... Bd8 {[%clk 0:01:21]} 55. Kc3 {[%clk 0:00:18.9]} 55... Ke6 {[%clk
0:01:22.2]} 56. Kb3 {[%clk 0:00:19.8]} 56... Kd7 {[%clk 0:01:23.3]} 57. Kb4
{[%clk 0:00:20.3]} 57... Kd6 {[%clk 0:01:24.6]} 1/2-1/2

[Event "*** Titled Tuesday Blitz"]
[Site "Chess.com"]
[Date "2019.06.04"]
[Round "2"]
[White "KRASAVCHIK2002"]
[Black "Quiet_Desperation"]
[Result "0-1"]
[WhiteElo "2278"]
[BlackElo "2447"]
[TimeControl "180+2"]
[EndTime "13:24:30 PDT"]
[Termination "Quiet_Desperation won by resignation"]

1. e4 {[%clk 0:03:01.9]} 1... Nc6 {[%clk 0:03:00.9]} 2. Nf3 {[%clk 0:03:01.3]}
2... d6 {[%clk 0:03:02.2]} 3. d4 {[%clk 0:03:01.3]} 3... Nf6 {[%clk 0:03:03.7]}
4. Nc3 {[%clk 0:03:01.3]} 4... d5 {[%clk 0:03:05]} 5. e5 {[%clk 0:03:01]} 5...
Ne4 {[%clk 0:03:06.4]} 6. Bb5 {[%clk 0:02:59.2]} 6... Nxc3 {[%clk 0:03:03]} 7.
bxc3 {[%clk 0:02:59.4]} 7... e6 {[%clk 0:03:03.4]} 8. O-O {[%clk 0:03:00.5]}
8... Be7 {[%clk 0:03:04.2]} 9. Re1 {[%clk 0:02:50.5]} 9... O-O {[%clk
0:03:04.9]} 10. Qe2 {[%clk 0:02:26.4]} 10... Bd7 {[%clk 0:03:04.5]} 11. Rb1
{[%clk 0:02:23]} 11... a6 {[%clk 0:03:02.2]} 12. Bd3 {[%clk 0:02:23.5]} 12... b5
{[%clk 0:03:01.3]} 13. a4 {[%clk 0:02:15.2]} 13... Na7 {[%clk 0:02:45.7]} 14.
axb5 {[%clk 0:02:12.6]} 14... Nxb5 {[%clk 0:02:25.3]} 15. Bd2 {[%clk 0:02:10]}
15... c5 {[%clk 0:02:22.9]} 16. Bxb5 {[%clk 0:02:05.2]} 16... Bxb5 {[%clk
0:02:20.5]} 17. Qe3 {[%clk 0:02:04.8]} 17... c4 {[%clk 0:02:17.2]} 18. Qf4
{[%clk 0:01:54.6]} 18... Ba4 {[%clk 0:02:05.5]} 19. Qg4 {[%clk 0:01:51.8]} 19...
Bxc2 {[%clk 0:02:04]} 20. Rb2 {[%clk 0:01:52.7]} 20... Bf5 {[%clk 0:02:01.5]}
21. Qg3 {[%clk 0:01:53.8]} 21... Kh8 {[%clk 0:01:48]} 22. Qf4 {[%clk 0:01:52.5]}
22... a5 {[%clk 0:01:45]} 23. g4 {[%clk 0:01:53]} 23... Be4 {[%clk 0:01:43.1]}
24. Be3 {[%clk 0:01:39]} 24... f6 {[%clk 0:01:26.6]} 25. Nd2 {[%clk 0:01:36.9]}
25... Bd3 {[%clk 0:01:15.8]} 26. Ra1 {[%clk 0:01:23]} 26... a4 {[%clk
0:01:11.5]} 27. Qg3 {[%clk 0:01:14.1]} 27... a3 {[%clk 0:01:11.9]} 28. Rba2
{[%clk 0:01:14.7]} 28... Qa5 {[%clk 0:01:02.6]} 29. exf6 {[%clk 0:01:06.1]}
29... Bxf6 {[%clk 0:01:00.1]} 30. g5 {[%clk 0:01:06.8]} 30... Be7 {[%clk
0:00:56.6]} 31. g6 {[%clk 0:01:08]} 31... Bxg6 {[%clk 0:00:55.6]} 32. Nf3 {[%clk
0:01:09.3]} 32... Rxf3 {[%clk 0:00:29.9]} 33. Qxf3 {[%clk 0:01:09.4]} 33... Rf8
{[%clk 0:00:30.5]} 34. Qg3 {[%clk 0:01:02.6]} 34... Qxc3 {[%clk 0:00:29.4]} 35.
Bc1 {[%clk 0:01:03.3]} 35... Qxd4 {[%clk 0:00:20.6]} 36. Bxa3 {[%clk 0:01:03.2]}
36... Bh4 {[%clk 0:00:20.9]} 37. Bxf8 {[%clk 0:00:57]} 37... Bxg3 {[%clk
0:00:22.1]} 38. hxg3 {[%clk 0:00:58.9]} 38... h6 {[%clk 0:00:21.4]} 39. Ra7
{[%clk 0:00:57]} 39... c3 {[%clk 0:00:16.6]} 40. Bxg7+ {[%clk 0:00:52.9]} 40...
Qxg7 {[%clk 0:00:17.2]} 41. Rxg7 {[%clk 0:00:54.8]} 41... Kxg7 {[%clk
0:00:18.9]} 42. f3 {[%clk 0:00:54.2]} 42... d4 {[%clk 0:00:18.2]} 43. Kf2 {[%clk
0:00:55.6]} 43... Kf6 {[%clk 0:00:16]} 44. Rc1 {[%clk 0:00:55.7]} 44... Ke5
{[%clk 0:00:16.4]} 45. Ke2 {[%clk 0:00:52.9]} 45... Kd5 {[%clk 0:00:17.5]} 46.
f4 {[%clk 0:00:51.7]} 46... Kc4 {[%clk 0:00:16.7]} 47. Ra1 {[%clk 0:00:51.2]}
47... d3+ {[%clk 0:00:15.6]} 48. Kd1 {[%clk 0:00:52.5]} 48... Bh5+ {[%clk
0:00:16.1]} 49. Kc1 {[%clk 0:00:53]} 49... d2+ {[%clk 0:00:16.5]} 50. Kc2 {[%clk
0:00:54.6]} 50... d1=Q+ {[%clk 0:00:16.9]} 51. Rxd1 {[%clk 0:00:56]} 51... Bxd1+
{[%clk 0:00:18.3]} 52. Kxd1 {[%clk 0:00:57.8]} 52... Kd3 {[%clk 0:00:19.6]} 53.
g4 {[%clk 0:00:57.9]} 53... Ke4 {[%clk 0:00:17.2]} 54. g5 {[%clk 0:00:59.2]}
54... hxg5 {[%clk 0:00:18.5]} 55. fxg5 {[%clk 0:01:00.6]} 55... Kf5 {[%clk
0:00:19.7]} 56. Kc2 {[%clk 0:01:02]} 56... Kxg5 {[%clk 0:00:21.6]} 57. Kxc3
{[%clk 0:01:03.7]} 57... Kf4 {[%clk 0:00:23.1]} 58. Kd2 {[%clk 0:01:04.6]} 58...
Kf3 {[%clk 0:00:24.5]} 59. Ke1 {[%clk 0:01:02.3]} 59... e5 {[%clk 0:00:24.1]}
60. Kf1 {[%clk 0:01:02.6]} 60... e4 {[%clk 0:00:21.8]} 61. Ke1 {[%clk 0:01:04]}
61... Ke3 {[%clk 0:00:22.9]} 62. Kf1 {[%clk 0:01:04.5]} 62... Kd2 {[%clk
0:00:24]} 63. Kf2 {[%clk 0:01:06.4]} 63... e3+ {[%clk 0:00:25.3]} 64. Kf3 {[%clk
0:01:08.2]} 64... e2 {[%clk 0:00:26.7]} 0-1

[Event "*** Titled Tuesday Blitz"]
[Site "Chess.com"]
[Date "2019.06.04"]
[Round "2"]
[White "awesomevishesh"]
[Black "DanielMieles1985"]
[Result "0-1"]
[WhiteElo "2433"]
[BlackElo "2627"]
[TimeControl "180+2"]
[EndTime "13:24:31 PDT"]
[Termination "DanielMieles1985 won on time"]

1. d4 {[%clk 0:03:01.9]} 1... Nf6 {[%clk 0:03:00.4]} 2. c4 {[%clk 0:03:01.9]}
2... g6 {[%clk 0:03:01.2]} 3. g3 {[%clk 0:03:02.3]} 3... Bg7 {[%clk 0:03:01.4]}
4. Bg2 {[%clk 0:03:03.4]} 4... d5 {[%clk 0:03:02.6]} 5. Nf3 {[%clk 0:03:04.4]}
5... O-O {[%clk 0:03:02.8]} 6. O-O {[%clk 0:03:04.9]} 6... Nc6 {[%clk
0:03:03.7]} 7. Nbd2 {[%clk 0:03:04.8]} 7... Be6 {[%clk 0:03:02.3]} 8. cxd5
{[%clk 0:02:35.8]} 8... Bxd5 {[%clk 0:03:01.1]} 9. e3 {[%clk 0:02:13.6]} 9... e5
{[%clk 0:03:01.1]} 10. Nxe5 {[%clk 0:02:05.5]} 10... Bxg2 {[%clk 0:02:47.4]} 11.
Kxg2 {[%clk 0:02:05.6]} 11... Nxe5 {[%clk 0:02:47.6]} 12. dxe5 {[%clk
0:02:06.1]} 12... Nd7 {[%clk 0:02:39.1]} 13. e6 {[%clk 0:01:50.8]} 13... fxe6
{[%clk 0:02:36.5]} 14. Nf3 {[%clk 0:01:46.3]} 14... Qf6 {[%clk 0:02:25.5]} 15.
e4 {[%clk 0:01:40.1]} 15... Ne5 {[%clk 0:02:14.9]} 16. Nxe5 {[%clk 0:01:34.4]}
16... Qxe5 {[%clk 0:02:16.8]} 17. Qe2 {[%clk 0:01:31.6]} 17... Rad8 {[%clk
0:02:12.6]} 18. Rb1 {[%clk 0:01:19.3]} 18... Rd4 {[%clk 0:01:59.1]} 19. f3
{[%clk 0:01:19.2]} 19... Rfd8 {[%clk 0:01:55.2]} 20. Be3 {[%clk 0:01:19.2]}
20... Rd3 {[%clk 0:01:51.7]} 21. b3 {[%clk 0:01:10.4]} 21... Qc3 {[%clk
0:01:46]} 22. Bf2 {[%clk 0:00:17.8]} 22... Rd2 {[%clk 0:01:46.9]} 23. Qc4 {[%clk
0:00:16.4]} 23... Qxc4 {[%clk 0:01:40.3]} 24. bxc4 {[%clk 0:00:17.1]} 24... Rxa2
{[%clk 0:01:41.9]} 25. Rfd1 {[%clk 0:00:11.6]} 25... Bd4 {[%clk 0:01:34.6]} 26.
Rf1 {[%clk 0:00:06.5]} 26... Bb6 {[%clk 0:01:31.7]} 27. Kg1 {[%clk 0:00:05.4]}
27... Rxf2 {[%clk 0:01:25.8]} 28. Rxf2 {[%clk 0:00:06.1]} 28... Rd2 {[%clk
0:01:26.8]} 29. Rxb6 {[%clk 0:00:07]} 29... Rd1+ {[%clk 0:01:27.9]} 30. Kg2
{[%clk 0:00:07.7]} 30... axb6 {[%clk 0:01:28.8]} 31. Ra2 {[%clk 0:00:08.1]}
31... Rc1 {[%clk 0:01:26.7]} 32. Ra7 {[%clk 0:00:09.1]} 32... Rxc4 {[%clk
0:01:26.6]} 33. Rxb7 {[%clk 0:00:10.4]} 33... Kf7 {[%clk 0:01:26.2]} 34. Kf2
{[%clk 0:00:10.7]} 34... Ke7 {[%clk 0:01:27.5]} 35. Ke3 {[%clk 0:00:11.6]} 35...
Kd7 {[%clk 0:01:29]} 36. Ra7 {[%clk 0:00:11.4]} 36... b5 {[%clk 0:01:29.2]} 37.
Kf4 {[%clk 0:00:09.9]} 37... b4 {[%clk 0:01:27.5]} 38. Ke5 {[%clk 0:00:08.1]}
38... Kc6 {[%clk 0:01:17.3]} 39. Kxe6 {[%clk 0:00:08]} 39... b3 {[%clk
0:01:16.4]} 40. Ra1 {[%clk 0:00:07.6]} 40... Kb5 {[%clk 0:01:13.7]} 41. Kd5
{[%clk 0:00:06.1]} 41... Rc2 {[%clk 0:01:13]} 42. Rb1 {[%clk 0:00:05.9]} 42...
Kb4 {[%clk 0:01:11.9]} 43. e5 {[%clk 0:00:06.7]} 43... c5 {[%clk 0:01:11.9]} 44.
e6 {[%clk 0:00:07.5]} 44... c4 {[%clk 0:01:13.2]} 45. Re1 {[%clk 0:00:06.3]}
45... Rd2+ {[%clk 0:01:09.7]} 46. Kc6 {[%clk 0:00:05.8]} 46... Rd8 {[%clk
0:01:09.9]} 47. e7 {[%clk 0:00:06.2]} 47... Ra8 {[%clk 0:00:56.3]} 48. Kd7
{[%clk 0:00:04.5]} 48... b2 {[%clk 0:00:49.7]} 49. e8=Q {[%clk 0:00:04]} 49...
Rxe8 {[%clk 0:00:50.2]} 50. Kxe8 {[%clk 0:00:04.7]} 50... c3 {[%clk 0:00:51.1]}
0-1